bitfinex/quotes_ETHUSD_20251018
["timestamp","ask_amount","ask_price","bid_price","bid_amount"]
[1760775082250,9.70397144,3905.6,3905.5,0.4341]
[1760775082433,11.53117239,3905.6,3905.5,0.4341]
[1760775084527,11.53117239,3905.6,3905.5,0.002]
[1760775084528,10.08540359,3905.6,3905.5,0.002]
[1760775084731,20.157257,3905.6,3905.5,0.002]
[1760775085470,15.49397357,3905.6,3905.5,0.002]
[1760775085628,12.20871357,3905.6,3905.5,0.002]
[1760775086663,12.20871357,3905.6,3905.5,0.4341]
[1760775087229,17.96961357,3905.6,3905.5,0.4341]
[1760775087428,17.96961357,3905.6,3905.5,0.002]
[1760775087830,17.96961357,3905.6,3905.5,0.4341]
[1760775088030,17.96961357,3905.6,3905.5,0.002]
[1760775089051,20.50861357,3905.6,3905.5,0.002]
[1760775089963,20.53613557,3905.6,3905.5,0.002]
[1760775091285,20.53613557,3905.6,3905.5,0.4595]
[1760775091286,17.96961357,3905.6,3905.5,0.4595]
[1760775091796,13.43249516,3905.6,3905.5,0.4595]
[1760775091949,13.03080874,3905.6,3905.5,0.4595]
[1760775092260,9.79284151,3905.6,3905.5,0.4595]
[1760775092465,11.92116756,3905.6,3905.5,0.4595]
[1760775092974,11.876527,3905.6,3905.5,0.4595]
[1760775093574,5.7609,3905.6,3905.5,0.4595]
[1760775093871,0.4595,3905.7,3905.5,0.4595]
[1760775094165,0.31880861,3906.8,3905.5,0.4595]
[1760775094166,0.128,3905.6,3905.5,0.4595]
[1760775095867,0.17262825,3905.6,3905.5,0.4595]
[1760775097442,0.17262825,3905.6,3905.5,3.01999161]
[1760775097832,0.17262825,3905.6,3905.5,4.21164934]
[1760775097833,0.04462825,3905.6,3905.5,4.21164934]
[1760775098039,0.77007686,3907.3,3905.6,0.6336]
[1760775098237,0.1272,3906.3,3906.1,2.56008261]
[1760775098447,0.17182018,3906.3,3906.2,0.6726]
[1760775101484,0.17182018,3906.3,3906.2,0.2151]
[1760775101687,0.17182018,3906.3,3906.0,0.2151]
[1760775101854,0.40335275,3906.3,3906.0,0.6726]
[1760775102048,0.40335275,3906.3,3906.1,0.4575]
[1760775102751,0.40335275,3906.3,3906.0,0.2151]
[1760775102953,0.04462018,3906.3,3906.1,0.4575]
[1760775103159,0.128,3906.1,3906.0,0.2151]
[1760775103879,0.128,3906.1,3906.0,0.6726]
[1760775105776,0.128,3906.1,3906.0,0.99588823]
[1760775106877,0.128,3906.1,3906.0,0.6726]
[1760775108885,0.129,3906.1,3906.0,0.6726]
[1760775114689,0.129,3906.1,3905.7,0.4575]
[1760775114895,0.001,3906.1,3905.5,0.002]
[1760775115102,2.64217711,3906.0,3905.5,0.002]
[1760775115399,1.728,3905.8,3905.5,0.002]
[1760775115765,2.65958765,3905.7,3905.5,0.002]
[1760775115961,2.56042605,3905.6,3905.5,0.002]
[1760775116561,2.65957512,3905.7,3905.5,0.002]
[1760775116867,0.44073257,3906.0,3905.5,0.002]
[1760775116868,0.35873257,3906.0,3905.5,0.002]
[1760775117198,0.04462928,3905.7,3905.6,3.01792605]
[1760775117384,0.04462928,3905.7,3905.6,3.32247928]
[1760775118578,0.04462928,3905.7,3905.6,0.76205323]
[1760775118787,0.04462928,3905.7,3905.5,0.002]
[1760775118993,0.17262928,3905.7,3905.5,0.4361]
[1760775119387,0.17262928,3905.7,3905.5,0.002]
[1760775119572,0.17262928,3905.7,3905.6,0.4341]
[1760775121479,0.17262928,3905.7,3905.5,0.002]
[1760775122306,0.17262928,3905.7,3905.5,0.4361]
[1760775122698,0.17262928,3905.7,3905.5,0.002]
[1760775122896,0.04462928,3905.7,3905.6,2.99452605]
[1760775123112,0.001,3906.1,3905.8,2.56029494]
[1760775123289,0.001,3906.1,3906.0,2.56016385]
[1760775123702,0.001,3906.1,3906.0,2.99426385]
[1760775124687,0.001,3906.1,3906.0,3.62786385]
[1760775125123,0.001,3906.1,3906.0,3.65346548]
[1760775125417,0.001,3906.1,3906.0,4.27484152]
[1760775125611,0.001,3906.1,3906.0,6.00284152]
[1760775125804,0.001,3906.1,3906.0,5.97723989]
[1760775128300,0.001,3906.5,3906.4,3.19350169]
[1760775128505,0.001,3906.5,3906.4,4.9471007]
[1760775128724,0.001,3906.5,3906.4,6.21587944]
[1760775128914,0.001,3906.5,3906.4,6.19028043]
[1760775129413,0.001,3907.6,3906.8,3.1932396]
[1760775129601,0.001,3907.6,3906.8,4.94683599]
[1760775129804,0.001,3907.6,3906.8,5.39763599]
[1760775130000,0.001,3907.6,3906.8,6.16778026]
[1760775131627,0.001,3907.6,3907.5,3.19278106]
[1760775132108,0.001,3907.6,3907.5,3.64358106]
[1760775132791,0.001,3907.6,3907.5,3.77078106]
[1760775133531,0.001,3907.6,3907.5,3.87338949]
[1760775133718,0.001,3907.6,3907.5,4.5388451]
[1760775134124,0.001,3907.6,3907.5,4.56108835]
[1760775136039,0.001,3907.6,3907.5,6.28908835]
[1760775136238,0.001,3907.6,3907.5,6.2668451]
[1760775139650,0.001,3907.6,3907.5,5.1824451]
[1760775140155,0.001,3907.6,3907.5,5.8160451]
[1760775140657,0.001,3907.6,3907.5,5.07983667]
[1760775140964,0.001,3907.6,3907.5,5.71343667]
[1760775141871,0.001,3907.6,3907.5,2.55918106]
[1760775142470,0.001,3907.6,3907.5,2.58477287]
[1760775142768,0.001,3907.6,3907.5,3.19278106]
[1760775143835,0.001,3907.6,3907.5,0.6336]
[1760775144066,0.001,3907.6,3907.5,3.19278106]
[1760775144645,0.1006,3907.6,3907.5,0.6336]
[1760775145049,0.1006,3907.6,3906.9,2.56155922]
[1760775145246,0.1006,3907.6,3906.9,0.002]
[1760775145434,0.001,3907.6,3907.4,2.5592101]
[1760775145672,0.001,3907.6,3907.5,0.02559181]
[1760775145841,0.001,3907.6,3907.4,2.5592101]
[1760775146343,0.001,3907.6,3907.5,0.02559181]
[1760775146549,0.001,3907.6,3907.2,2.55936306]
[1760775146550,0.1006,3907.6,3907.2,2.55936306]
[1760775146745,0.1006,3907.6,3907.0,0.6336]
[1760775146746,0.001,3907.6,3907.0,0.6336]
[1760775147072,0.0996,3907.5,3907.0,0.6336]
[1760775147269,0.0996,3907.4,3907.0,0.6336]
[1760775147467,0.0996,3907.3,3907.0,0.6336]
[1760775148670,0.0996,3907.3,3906.9,0.002]
[1760775148982,0.001,3907.6,3906.9,0.002]
[1760775148983,0.0996,3907.2,3906.9,0.002]
[1760775149182,0.0996,3907.1,3906.9,0.002]
[1760775149593,0.04560475,3907.6,3906.9,0.002]
[1760775149742,0.0996,3907.0,3906.9,0.002]
[1760775149946,0.0996,3907.5,3906.9,0.002]
[1760775150182,0.0996,3907.3,3906.9,0.002]
[1760775151747,2.55939259,3907.2,3906.9,0.002]
[1760775151946,0.0996,3907.3,3906.9,0.002]
[1760775151947,2.65897027,3907.3,3906.9,0.002]
[1760775152195,0.0996,3907.1,3906.9,0.002]
[1760775152781,0.42244182,3907.2,3906.9,0.002]
[1760775154996,2.55945431,3907.1,3906.9,0.002]
[1760775155378,2.55950857,3907.0,3906.9,0.002]
[1760775156066,2.60412434,3907.0,3906.9,0.002]
[1760775156264,0.04461577,3907.0,3906.9,0.002]
[1760775156566,2.60412434,3907.0,3906.9,0.002]
[1760775156956,3.12047474,3907.0,3906.9,0.002]
[1760775157571,8.88137474,3907.0,3906.9,0.002]
[1760775158564,23.21644474,3907.0,3906.9,0.002]
[1760775158769,23.57517731,3907.0,3906.9,0.002]
[1760775159397,19.89982731,3907.0,3906.9,0.002]
[1760775159706,19.69702731,3907.0,3906.9,0.002]
[1760775159887,20.02822042,3907.0,3906.9,0.002]
[1760775163477,19.43510642,3907.0,3906.9,0.002]
[1760775164385,1.728,3906.7,3906.5,0.002]
[1760775164591,6.77626907,3906.6,3906.5,0.002]
[1760775164770,9.33603971,3906.6,3906.5,0.002]
[1760775165177,9.38066022,3906.6,3906.5,0.002]
[1760775166214,6.82088958,3906.6,3906.5,0.002]
[1760775166900,9.38066022,3906.6,3906.5,0.002]
[1760775167406,6.82088958,3906.6,3906.5,0.002]
[1760775169807,9.38066022,3906.6,3906.5,0.002]
[1760775170012,6.82088958,3906.6,3906.5,0.002]
[1760775172383,5.80352051,3906.6,3906.5,0.4362]
[1760775172815,5.93072051,3906.6,3906.5,0.4362]
[1760775173206,5.8861,3906.6,3906.5,0.4362]
[1760775174220,5.8861,3906.6,3906.5,2.99603617]
[1760775174404,5.8861,3906.6,3906.5,0.9917991]
[1760775175338,5.8861,3906.6,3906.5,3.55163527]
[1760775175489,5.8035117,3906.6,3906.5,3.55163527]
[1760775176087,0.0446117,3906.6,3906.5,3.55163527]
[1760775178797,0.0446117,3906.6,3906.5,1.01739746]
[1760775178999,0.0446117,3906.6,3906.5,0.9917991]
[1760775179221,0.0446117,3906.6,3906.5,3.55163527]
[1760775179529,0.0446117,3906.6,3906.5,0.9917991]
[1760775179917,0.0446117,3906.6,3906.5,3.55163527]
[1760775181436,0.0446117,3906.6,3906.5,0.002]
[1760775181730,19.60952602,3906.6,3906.5,0.002]
[1760775181946,20.01107089,3906.6,3906.5,0.002]
[1760775182121,20.28468593,3906.6,3906.5,0.002]
[1760775182298,19.39894936,3906.6,3906.5,0.002]
[1760775182636,35.36531136,3906.6,3906.5,0.002]
[1760775182815,20.94988636,3906.6,3906.5,0.002]
[1760775183018,18.34262736,3906.6,3906.5,0.002]
[1760775183231,9.51529386,3906.6,3906.5,0.002]
[1760775183540,1.728,3906.6,3906.5,0.002]
[1760775184243,4.28777064,3906.6,3906.5,0.002]
[1760775184393,5.0980068,3906.6,3906.5,0.002]
[1760775184592,2.46886067,3906.6,3906.5,0.002]
[1760775184790,18.78971042,3906.6,3906.5,0.002]
[1760775185114,20.05565803,3906.6,3906.5,0.002]
[1760775185352,20.45730981,3906.6,3906.5,0.002]
[1760775185795,37.14142381,3906.6,3906.5,0.002]
[1760775186222,19.70160281,3906.6,3906.5,0.002]
[1760775186945,25.99898781,3906.6,3906.5,0.002]
[1760775187151,24.32650681,3906.6,3906.5,0.002]
[1760775187737,27.09340181,3906.6,3906.5,0.002]
[1760775187935,26.09842581,3906.6,3906.5,0.002]
[1760775188135,23.59890981,3906.6,3906.5,0.002]
[1760775188468,21.35358477,3906.6,3906.5,0.002]
[1760775188825,26.42679377,3906.6,3906.5,0.002]
[1760775189040,25.82541177,3906.6,3906.5,0.002]
[1760775189450,25.45539477,3906.6,3906.5,0.002]
[1760775189835,9.00574277,3906.6,3906.5,0.002]
[1760775191542,36.86780877,3906.6,3906.5,0.002]
[1760775192744,15.23788377,3906.6,3906.5,0.002]
[1760775193525,23.82729477,3906.6,3906.5,0.002]
[1760775193753,18.44287177,3906.6,3906.5,0.002]
[1760775194538,33.18780077,3906.6,3906.5,0.002]
[1760775194738,27.39794577,3906.6,3906.5,0.002]
[1760775195425,32.51694277,3906.6,3906.5,0.002]
[1760775196160,30.86454177,3906.6,3906.5,0.002]
[1760775196466,31.43914477,3906.6,3906.5,0.002]
[1760775197528,6.86780877,3906.6,3906.5,0.002]
[1760775197729,36.86780877,3906.6,3906.5,0.002]
[1760775199334,36.75380877,3906.6,3906.5,0.002]
[1760775199866,36.75380877,3906.6,3905.7,0.4751]
[1760775199867,2.56029494,3905.8,3905.7,0.4751]
[1760775200168,14.18900494,3905.8,3905.7,0.4751]
[1760775200326,15.60790543,3905.8,3905.7,0.4751]
[1760775200526,18.24486808,3905.8,3905.7,0.002]
[1760775200733,17.45086808,3905.8,3905.7,0.4751]
[1760775201040,10.88892808,3905.8,3905.7,0.4751]
[1760775201473,10.88892808,3905.8,3905.7,0.002]
[1760775201640,11.37086108,3905.8,3905.7,0.4751]
[1760775201968,10.91458708,3905.8,3905.7,0.4751]
[1760775202529,11.24578019,3905.8,3905.7,0.4751]
[1760775202761,11.23297619,3905.8,3905.7,0.4751]
[1760775203273,11.59170876,3905.8,3905.7,0.4751]
[1760775203557,11.59170876,3905.8,3905.7,0.002]
[1760775203759,12.02098176,3905.8,3905.7,0.002]
[1760775212166,6.84341176,3905.8,3905.7,0.002]
[1760775212372,6.84341176,3905.8,3905.7,0.4763]
[1760775212552,6.84341176,3905.8,3905.7,0.002]
[1760775213780,6.84341176,3905.8,3905.7,0.4763]
[1760775214771,6.84341176,3905.8,3905.7,0.002]
[1760775215546,6.84341176,3905.8,3905.7,0.4763]
[1760775216359,6.84341176,3905.8,3905.7,0.002]
[1760775219956,6.84341176,3905.8,3905.6,0.002]
[1760775220155,6.84341176,3905.8,3905.3,0.002]
[1760775220156,4.28855717,3905.4,3905.3,0.002]
[1760775220374,4.97848285,3905.4,3905.3,0.002]
[1760775220749,5.38018685,3905.4,3905.3,0.002]
[1760775221284,4.97848285,3905.4,3905.3,0.002]
[1760775221589,5.67471901,3905.4,3905.3,0.002]
[1760775223084,6.07643253,3905.4,3905.3,0.002]
[1760775223591,10.62062707,3905.4,3905.3,0.002]
[1760775225600,9.86332682,3905.4,3905.3,0.002]
[1760775232179,9.17340114,3905.4,3905.3,0.4763]
[1760775232385,11.87565014,3905.4,3905.3,0.4763]
[1760775232600,11.24234514,3905.4,3905.3,0.4763]
[1760775232998,11.57353825,3905.4,3905.3,0.4763]
[1760775233517,11.57353825,3905.4,3905.3,0.002]
[1760775233718,11.57353825,3905.4,3905.3,0.4763]
[1760775236499,9.50459425,3905.4,3905.3,0.4763]
[1760775236895,12.61651025,3905.4,3905.3,0.4763]
[1760775237919,12.61651025,3905.4,3905.3,0.002]
[1760775238504,4.69027069,3905.4,3905.3,0.4763]
[1760775238710,2.56055717,3905.4,3905.3,0.4763]
[1760775238910,4.28855717,3905.4,3905.3,0.4763]
[1760775240612,4.64728974,3905.4,3905.3,0.4763]
[1760775240813,4.97848285,3905.4,3905.3,0.002]
[1760775241018,6.11106317,3905.4,3905.3,0.002]
[1760775241620,6.15570276,3905.4,3905.3,0.002]
[1760775241801,6.19865537,3905.4,3905.3,0.002]
[1760775242001,6.55738794,3905.4,3905.3,0.002]
[1760775242365,5.79697019,3905.4,3905.3,0.002]
[1760775242532,5.79697019,3905.4,3905.3,0.472]
[1760775242832,5.7523306,3905.4,3905.3,0.472]
[1760775243002,5.79697193,3905.4,3905.3,0.472]
[1760775243333,5.7523306,3905.4,3905.3,0.472]
[1760775245105,6.15401592,3905.4,3905.3,0.472]
[1760775245941,6.19865573,3905.4,3905.3,0.472]
[1760775246613,4.7348823,3905.4,3905.3,0.472]
[1760775247438,4.7348823,3905.4,3905.3,0.002]
[1760775247622,5.06607541,3905.4,3905.3,0.002]
[1760775248407,5.06607541,3905.4,3905.3,0.4527]
[1760775252116,1.77263981,3905.4,3905.3,0.4527]
[1760775252821,1.728,3905.4,3905.3,0.4527]
[1760775253406,4.28855717,3905.4,3905.3,0.4527]
[1760775253820,1.728,3905.4,3905.3,0.4527]
[1760775255853,1.77263769,3905.4,3905.3,0.4527]
[1760775256823,0.04463769,3905.4,3905.3,0.47830622]
[1760775257035,0.17263769,3905.4,3905.3,0.77886997]
[1760775258149,0.17263769,3905.4,3905.3,0.4527]
[1760775259353,0.17263769,3905.4,3905.3,3.01332274]
[1760775259554,0.17263769,3905.4,3905.3,3.03892896]
[1760775259742,0.17263769,3905.4,3905.3,0.4527]
[1760775260926,0.17263769,3905.4,3905.3,3.01332274]
[1760775261458,0.17263769,3905.4,3905.3,0.4527]
[1760775261853,0.17263769,3905.4,3905.3,1.03238666]
[1760775264128,0.17263769,3905.4,3905.3,3.5930094]
[1760775264740,0.17263769,3905.4,3905.3,1.03238666]
[1760775265830,0.17263769,3905.4,3905.3,0.4527]
[1760775267574,0.17263769,3905.4,3905.3,0.002]
[1760775267870,0.17263769,3905.4,3905.3,0.4527]
[1760775270081,0.17263769,3905.4,3905.3,3.01332274]
[1760775270281,0.17263769,3905.4,3905.3,3.03892896]
[1760775270487,0.17263769,3905.4,3905.3,3.62116664]
[1760775271081,0.17263769,3905.4,3905.3,3.59556042]
[1760775271082,0.04463769,3905.4,3905.3,3.59556042]
[1760775271344,0.001,3905.5,3905.4,3.19415717]
[1760775271544,0.40262544,3906.7,3905.9,0.6336]
[1760775271545,0.04462268,3906.2,3905.9,0.6336]
[1760775271783,0.001,3906.9,3906.8,2.5596396]
[1760775271968,0.001,3906.9,3906.8,0.4475]
[1760775272282,0.001,3906.9,3906.8,3.0071396]
[1760775272485,0.001,3906.9,3906.8,3.03273599]
[1760775274575,0.001,3906.9,3906.8,0.4475]
[1760775274774,0.001,3906.9,3906.8,1.01691846]
[1760775275509,0.001,3906.9,3906.8,3.57655806]
[1760775277169,0.001,3906.9,3906.8,4.21015806]
[1760775279942,0.001,3906.9,3906.8,4.23575445]
[1760775280571,0.001,3906.9,3906.8,4.21015806]
[1760775282112,0.001,3906.9,3906.8,4.31278623]
[1760775282306,0.001,3906.9,3906.8,4.21015806]
[1760775283800,0.001,3906.9,3906.8,0.56941846]
[1760775283997,0.1282,3906.9,3906.2,2.56002601]
[1760775284337,0.0456076,3906.9,3906.3,2.55992269]
[1760775284631,0.001,3906.9,3906.2,2.55999643]
[1760775284829,0.001,3906.9,3906.6,0.002]
[1760775285031,0.1,3906.9,3906.6,0.002]
[1760775285496,0.099,3906.8,3906.6,0.002]
[1760775285696,5.8469,3906.9,3906.6,0.002]
[1760775286916,5.891513,3906.9,3906.6,0.002]
[1760775287509,5.792513,3906.9,3906.6,0.002]
[1760775287726,5.891513,3906.9,3906.6,0.002]
[1760775288422,6.3866243,3906.9,3906.6,0.002]
[1760775288622,0.099,3906.8,3906.6,0.002]
[1760775289028,0.099,3906.7,3906.6,0.002]
[1760775289742,5.792513,3906.9,3906.6,0.002]
[1760775289941,0.099,3906.7,3906.6,0.002]
[1760775290536,8.59666658,3906.7,3906.6,0.002]
[1760775291315,0.045613,3906.9,3906.6,0.2346]
[1760775291559,0.001,3906.9,3906.7,0.02559705]
[1760775291852,0.001,3906.9,3906.6,0.002]
[1760775291853,0.0496,3906.9,3906.6,0.002]
[1760775292234,0.1486,3906.9,3906.6,0.002]
[1760775292419,0.0496,3906.9,3906.6,0.002]
[1760775292619,0.1486,3906.9,3906.6,0.002]
[1760775292818,0.099,3906.8,3906.6,0.002]
[1760775293020,0.0496,3906.9,3906.6,0.002]
[1760775294457,0.099,3906.8,3906.6,0.002]
[1760775294819,0.09421489,3906.9,3906.6,0.002]
[1760775296451,0.19321489,3906.9,3906.6,0.002]
[1760775297166,0.09421489,3906.9,3906.6,0.002]
[1760775299052,0.099,3906.8,3906.6,0.002]
[1760775300349,0.09421489,3906.9,3906.6,0.002]
[1760775300550,0.09421489,3906.9,3905.9,0.002]
[1760775300551,0.040615,3906.0,3905.9,0.002]
[1760775301665,0.040615,3906.0,3905.9,0.4668]
[1760775302194,0.040615,3906.0,3905.9,0.002]
[1760775302366,0.139615,3906.0,3905.9,0.002]
[1760775302551,0.58237998,3906.0,3905.9,0.002]
[1760775303597,4.42777885,3906.0,3905.9,0.002]
[1760775304167,1.768615,3906.0,3905.9,0.002]
[1760775305096,1.768615,3906.0,3905.9,0.4668]
[1760775305481,0.040615,3906.0,3905.9,0.4668]
[1760775306008,0.040615,3906.0,3905.9,0.002]
[1760775306206,2.55998388,3906.3,3905.9,0.002]
[1760775306354,7.5739,3906.0,3905.9,0.002]
[1760775306896,10.13406385,3906.0,3905.9,0.002]
[1760775308289,10.76965024,3906.0,3905.9,0.002]
[1760775313109,7.4749,3906.0,3905.9,0.002]
[1760775314294,7.4749,3906.0,3905.9,0.4448]
[1760775315080,7.4749,3906.0,3905.9,0.002]
[1760775315302,10.78255385,3906.0,3905.9,0.002]
[1760775315502,10.88155385,3906.0,3905.9,0.002]
[1760775315670,10.78255385,3906.0,3905.9,0.002]
[1760775317733,11.18417896,3906.0,3905.9,0.002]
[1760775318232,10.16112939,3905.9,3905.8,0.002]
[1760775318424,11.64482337,3905.9,3905.8,0.002]
[1760775319002,11.74753878,3905.9,3905.8,0.002]
[1760775319203,11.64853878,3905.9,3905.8,0.002]
[1760775319840,8.98559398,3905.9,3905.8,0.002]
[1760775320132,11.54582337,3905.9,3905.8,0.002]
[1760775332565,11.54582337,3905.9,3905.1,0.002]
[1760775332566,0.03863282,3905.2,3905.1,0.002]
[1760775332777,7.51153282,3905.2,3905.1,0.002]
[1760775333079,7.51153282,3905.2,3905.1,0.6855]
[1760775337965,7.51153282,3905.2,3905.1,0.002]
[1760775338149,7.4729,3905.2,3905.1,0.002]
[1760775338481,8.47625287,3905.2,3905.1,0.002]
[1760775338650,7.4729,3905.2,3905.1,0.6855]
[1760775338844,7.4729,3905.2,3905.1,0.239]
[1760775339476,7.4729,3905.2,3905.1,0.6855]
[1760775340073,7.4729,3905.2,3905.1,0.239]
[1760775340395,7.4729,3905.2,3905.1,0.002]
[1760775340696,8.47624741,3905.2,3905.1,0.002]
[1760775343268,7.4729,3905.2,3905.1,0.002]
[1760775343700,0.036615,3904.8,3904.7,0.4485]
[1760775346766,0.036615,3904.8,3904.7,0.002]
[1760775347782,5.781515,3904.8,3904.7,0.002]
[1760775349293,5.7449,3904.8,3904.7,0.002]
[1760775349602,5.7449,3904.8,3904.4,0.646285]
[1760775349771,0.128,3904.5,3904.4,0.646285]
[1760775353902,0.128,3904.5,3904.4,0.648285]
[1760775355190,0.17263835,3904.5,3904.4,0.648285]
[1760775356688,0.17263835,3904.5,3904.4,0.002]
[1760775357224,11.22734957,3904.5,3904.4,0.002]
[1760775358951,11.75064648,3904.5,3904.4,0.002]
[1760775359129,12.04608711,3904.5,3904.4,0.002]
[1760775360496,12.44786399,3904.5,3904.4,0.002]
[1760775360701,30.77434799,3904.5,3904.4,0.002]
[1760775361138,28.90400405,3904.5,3904.4,0.002]
[1760775361296,27.58550105,3904.5,3904.4,0.002]
[1760775361494,28.3277317,3904.5,3904.4,0.002]
[1760775361710,28.8333317,3904.5,3904.4,0.002]
[1760775362000,28.8333317,3904.5,3904.1,0.002]
[1760775362001,35.2523099,3904.4,3904.1,0.002]
[1760775362242,9.92576545,3904.4,3904.1,0.002]
[1760775362439,12.06884153,3904.4,3904.1,0.002]
[1760775362605,17.21095453,3904.4,3904.1,0.002]
[1760775362823,17.84455453,3904.4,3904.1,0.002]
[1760775363145,18.13605144,3904.4,3904.1,0.002]
[1760775363341,18.13605144,3904.4,3904.1,1e-08]
[1760775363342,21.06450119,3904.2,3904.1,1e-08]
[1760775363531,24.45991556,3904.2,3904.1,1e-08]
[1760775363735,13.22999265,3904.2,3904.1,1e-08]
[1760775364171,9.98279865,3904.2,3904.1,1e-08]
[1760775364322,5.7449,3904.5,3904.1,0.68210001]
[1760775364645,2.56127859,3904.3,3904.1,0.21630001]
[1760775364851,2.56122489,3904.4,3904.2,0.4658]
[1760775365011,2.56115843,3904.5,3904.3,0.4658]
[1760775365216,3.78538899,3904.9,3904.4,0.4658]
[1760775365434,4.90316205,3904.9,3904.1,0.21630001]
[1760775365633,1.728,3904.5,3904.1,0.68210001]
[1760775366022,2.56134419,3904.2,3904.1,0.21630001]
[1760775366315,4.28934419,3904.2,3904.1,1e-08]
[1760775366516,5.38694774,3904.2,3904.1,1e-08]
[1760775367618,2.82560355,3904.2,3904.1,0.46580001]
[1760775367814,1.728,3904.2,3904.1,0.68210001]
[1760775368318,7.4729,3904.2,3904.1,0.68210001]
[1760775368521,10.03424419,3904.2,3904.1,0.68210001]
[1760775368749,10.03424419,3904.2,3904.1,0.21630001]
[1760775368954,10.03424419,3904.2,3904.1,1e-08]
[1760775369147,8.80663728,3904.2,3904.1,1e-08]
[1760775369444,11.36798147,3904.2,3904.1,0.46580001]
[1760775370262,8.80663728,3904.2,3904.1,1e-08]
[1760775370563,7.4729,3904.2,3904.1,0.68210001]
[1760775372272,10.03424419,3904.2,3904.1,1e-08]
[1760775372469,10.03524419,3904.2,3904.1,1e-08]
[1760775373367,15.32826519,3904.2,3904.1,1e-08]
[1760775373563,21.09256122,3904.2,3904.1,1e-08]
[1760775373767,16.76193522,3904.2,3904.1,1e-08]
[1760775374066,16.50893722,3904.2,3904.1,1e-08]
[1760775374447,36.63224182,3904.2,3904.1,1e-08]
[1760775374655,30.53630773,3904.2,3904.1,1e-08]
[1760775375173,30.63907856,3904.2,3904.1,1e-08]
[1760775375662,20.34268956,3904.2,3904.1,1e-08]
[1760775376464,43.30800956,3904.2,3904.1,1e-08]
[1760775376663,8.93797539,3904.0,3903.9,0.002]
[1760775376968,15.48278036,3904.0,3903.9,0.002]
[1760775377157,15.58178036,3904.0,3903.9,0.002]
[1760775377471,15.87327727,3904.0,3903.9,0.002]
[1760775377641,41.87080827,3904.0,3903.9,0.002]
[1760775378684,36.21533627,3904.0,3903.9,0.002]
[1760775379178,34.97938027,3904.0,3903.9,0.002]
[1760775379583,36.35054027,3904.0,3903.9,0.002]
[1760775380782,41.36360627,3904.0,3903.9,0.002]
[1760775381674,45.58178036,3904.0,3903.9,0.002]
[1760775382069,37.91777936,3904.0,3903.9,0.002]
[1760775382669,15.58178036,3904.0,3903.9,0.002]
[1760775382878,42.18522573,3904.0,3903.9,0.002]
[1760775383184,7.82919674,3903.1,3902.9,0.2163]
[1760775383389,6.99509999,3903.0,3902.9,0.2163]
[1760775384572,9.55723168,3903.0,3902.9,0.2163]
[1760775384778,6.99509999,3903.0,3902.9,0.2163]
[1760775384987,9.55723168,3903.0,3902.9,0.2163]
[1760775385169,10.27320703,3903.0,3902.9,0.2163]
[1760775385380,10.27320703,3903.0,3902.9,0.6821]
[1760775385561,10.31787034,3903.0,3902.9,0.2163]
[1760775385767,10.31787034,3903.0,3901.8,0.235]
[1760775385768,4.29032864,3902.7,3902.6,0.4658]
[1760775386663,1.728,3902.7,3902.6,0.4658]
[1760775387695,1.728,3902.7,3902.6,0.42716718]
[1760775389202,6.99509999,3902.7,3902.6,0.42716718]
[1760775389578,1.728,3902.6,3902.2,0.4356]
[1760775389778,1.728,3902.6,3902.3,0.4356]
[1760775389981,6.99509999,3902.6,3902.4,0.4356]
[1760775390211,7.03976415,3902.6,3902.5,0.4356]
[1760775394052,6.99509999,3902.6,3902.5,0.4356]
[1760775394187,7.03976182,3902.6,3902.5,0.73818573]
[1760775394391,7.03976182,3902.6,3902.5,0.4356]
[1760775394638,7.03976182,3902.6,3902.5,2.99805996]
[1760775394639,5.26709999,3902.6,3902.5,2.99805996]
[1760775394798,5.39509999,3902.6,3902.5,2.99805996]
[1760775396592,0.128,3903.0,3902.9,2.56219734]
[1760775396925,0.04465743,3903.1,3903.0,2.56213169]
[1760775397121,0.04465743,3903.1,3903.0,3.656953]
[1760775397335,0.001,3904.0,3903.0,3.656953]
[1760775397336,0.001,3904.0,3903.3,0.6336]
[1760775397569,0.001,3904.0,3903.9,2.78764102]
[1760775397825,0.001,3904.0,3903.9,0.2261]
[1760775397987,0.001,3904.0,3903.9,0.6617]
[1760775398320,0.001,3904.0,3903.9,0.99683893]
[1760775398520,0.001,3904.0,3903.9,0.6617]
[1760775398825,0.001,3904.0,3903.9,3.22324102]
[1760775399620,0.001,3904.0,3903.9,0.6617]
[1760775401601,0.128,3903.9,3903.5,0.2261]
[1760775401820,0.128,3903.9,3903.6,0.4356]
[1760775402019,0.001,3904.0,3903.6,0.4356]
[1760775402431,0.128,3903.6,3903.5,0.2261]
[1760775402632,0.128,3903.6,3903.5,2.7879035]
[1760775402836,0.128,3903.6,3903.5,3.32288148]
[1760775403021,0.128,3903.6,3903.5,3.75848148]
[1760775403422,0.128,3903.6,3903.5,1.19667798]
[1760775403621,0.128,3903.6,3903.5,0.6617]
[1760775404170,0.128,3903.6,3903.2,0.6617]
[1760775404324,0.128,3903.6,3903.3,0.4356]
[1760775404519,0.001,3904.0,3903.3,0.4356]
[1760775404725,0.128,3903.4,3903.3,0.4356]
[1760775406326,0.128,3903.4,3903.2,0.2261]
[1760775407352,0.128,3903.4,3903.3,0.4356]
[1760775407673,0.128,3903.4,3903.2,0.2261]
[1760775407981,0.128,3903.4,3903.2,0.6617]
[1760775408655,0.17265291,3903.4,3903.2,0.6617]
[1760775408854,0.17265291,3903.4,3903.0,0.2261]